fUST/lending_fUST_20251030
["ID","MTS","AMOUNT","RATE_DAILY","PERIOD"]
[392686452,1761810670207,-500.0,0.00029589,4]
[392686453,1761810670216,-500.0,0.00029589,4]
[392686454,1761810670224,-236.38,0.00029589,4]
[392686455,1761810670233,-500.0,0.00029589,4]
[392686456,1761810670243,-500.0,0.00029589,4]
[392686457,1761810670251,-500.0,0.00029589,4]
[392686458,1761810670260,-500.0,0.00029589,4]
[392686459,1761810670270,-533.07,0.00029589,4]
[392686460,1761810670279,-500.0,0.00029589,4]
[392686461,1761810670289,-500.0,0.00029589,4]
[392686462,1761810670298,-618.24,0.000296,2]
[392686463,1761810670308,-153.0299938,0.0002964,5]
[392686464,1761810670318,-500.0,0.00029641,7]
[392686465,1761810670327,-500.0,0.00029645,4]
[392686466,1761810670337,-500.0,0.00029678,7]
[392686467,1761810670346,-500.0,0.00029687,7]
[392686468,1761810670355,-500.0,0.00029703,7]
[392686469,1761810670366,-170.17668981,0.00029758,30]
[392686470,1761810670376,-500.0,0.00029769,7]
[392686471,1761810670384,-233.75,0.00029777,4]
[392686472,1761810670394,-500.0,0.00029777,4]
[392686473,1761810670402,-500.0,0.00029777,4]
[392686474,1761810670411,-500.0,0.00029777,4]
[392686475,1761810670420,-500.0,0.00029777,4]
[392686476,1761810670429,-500.0,0.00029777,4]
[392686477,1761810670438,-164.24,0.00029777,4]
[392686478,1761810670447,-500.0,0.00029777,4]
[392686479,1761810670456,-500.0,0.00029777,4]
[392686480,1761810670465,-500.0,0.00029777,4]
[392686481,1761810670475,-500.0,0.00029777,2]
[392686482,1761810670484,-500.0,0.00029777,4]
[392686483,1761810670492,-750.8,0.00029777,4]
[392686484,1761810670501,-500.0,0.00029777,4]
[392686485,1761810670511,-500.0,0.00029777,4]
[392686486,1761810670520,-500.0,0.00029777,4]
[392686487,1761810670614,-1079.18,0.00029777,4]
[392686488,1761810670624,-500.0,0.00029777,4]
[392686489,1761810670634,-500.0,0.00029777,4]
[392686490,1761810670643,-500.0,0.00029777,4]
[392686491,1761810670653,-500.0,0.00029777,4]
[392686492,1761810670662,-346.32,0.00029777,4]
[392686493,1761810670671,-500.0,0.00029777,4]
[392686494,1761810670680,-563.2,0.00029777,4]
[392686495,1761810670689,-500.0,0.00029777,4]
[392686496,1761810670698,-327.06313616,0.00029777,4]
[392686497,1761810670707,-500.0,0.00029777,4]
[392686498,1761810670718,-641.56,0.00029777,4]
[392686499,1761810670727,-500.0,0.00029863,4]
[392686500,1761810670738,-384.68,0.00029863,4]
[392686501,1761810670747,-500.0,0.00029863,4]
[392686502,1761810670756,-500.0,0.00029863,4]
[392686503,1761810670765,-500.0,0.00029863,4]
[392686504,1761810670775,-500.0,0.00029863,4]
[392686505,1761810670784,-500.0,0.00029863,4]
[392686506,1761810670793,-500.0,0.00029863,4]
[392686507,1761810670802,-500.0,0.00029863,4]
[392686508,1761810670813,-500.0,0.00029863,4]
[392686509,1761810670822,-500.0,0.00029863,4]
[392686510,1761810670831,-500.0,0.00029863,4]
[392686511,1761810670841,-500.0,0.00029863,4]
[392686512,1761810670851,-500.0,0.00029863,4]
[392686513,1761810670860,-500.0,0.00029863,4]
[392686514,1761810670869,-539.18,0.00029863,4]
[392686515,1761810670879,-500.0,0.00029863,4]
[392686516,1761810670888,-500.0,0.00029863,4]
[392686517,1761810670898,-1257.51,0.00029863,4]
[392686518,1761810670907,-298.1,0.00029863,4]
[392686519,1761810670916,-500.0,0.00029863,4]
[392686520,1761810670925,-500.0,0.00029863,4]
[392686521,1761810670934,-500.0,0.00029863,4]
[392686522,1761810670945,-500.0,0.00029863,4]
[392686523,1761810670954,-500.0,0.00029863,4]
[392686524,1761810670966,-500.0,0.00029863,4]
[392686525,1761810670975,-500.0,0.00029863,4]
[392686526,1761810670986,-507.62,0.00029863,4]
[392686527,1761810671001,-500.0,0.00029863,4]
[392686528,1761810671009,-500.0,0.00029863,4]
[392686529,1761810671019,-500.0,0.00029863,4]
[392686530,1761810671028,-500.0,0.00029863,4]
[392686531,1761810671038,-218.45,0.00029863,4]
[392686532,1761810671048,-590.42,0.00029863,4]
[392686533,1761810671057,-500.0,0.00029863,4]
[392686534,1761810671067,-500.0,0.00029863,4]
[392686535,1761810671077,-500.0,0.00029863,4]
[392686536,1761810671087,-500.0,0.00029863,4]
[392686537,1761810671097,-1166.11,0.00029863,4]
[392686538,1761810671109,-592.45,0.00029863,4]
[392686539,1761810671118,-500.0,0.00029863,4]
[392686540,1761810671128,-169.77,0.00029863,4]
[392686541,1761810671137,-500.0,0.00029863,4]
[392686542,1761810671147,-1276.78,0.00029863,4]
[392686543,1761810671156,-500.0,0.00029863,4]
[392686544,1761810671166,-500.0,0.00029863,4]
[392686545,1761810671175,-500.0,0.00029863,4]
[392686546,1761810671185,-500.0,0.00029863,4]
[392686547,1761810671195,-500.0,0.00029863,4]
[392686548,1761810671204,-500.0,0.00029863,4]
[392686549,1761810671214,-512.05,0.00029863,4]
[392686550,1761810671224,-500.0,0.00029863,4]
[392686551,1761810671233,-500.0,0.00029863,4]
[392686552,1761810671243,-500.0,0.00029863,4]
[392686553,1761810671252,-500.0,0.00029863,4]
[392686554,1761810671261,-500.0,0.00029863,4]
[392686555,1761810671271,-536.13,0.00029863,4]
[392686556,1761810671280,-500.0,0.00029863,4]
[392686557,1761810671290,-500.0,0.00029863,4]
[392686558,1761810671300,-660.73,0.00029863,4]
[392686559,1761810671310,-500.0,0.00029863,4]
[392686560,1761810671319,-552.55,0.00029863,4]
[392686561,1761810671328,-500.0,0.00029863,4]
[392686562,1761810671338,-500.0,0.00029863,4]
[392686563,1761810671347,-500.0,0.00029863,4]
[392686564,1761810671356,-624.96,0.00029863,4]
[392686565,1761810671365,-500.0,0.00029863,4]
[392686566,1761810671375,-235.52,0.00029863,4]
[392686567,1761810671384,-500.0,0.00029863,4]
[392686568,1761810671394,-500.0,0.00029863,4]
[392686569,1761810671403,-500.0,0.00029863,4]
[392686570,1761810671413,-500.0,0.00029863,4]
[392686571,1761810671422,-500.0,0.00029863,4]
[392686572,1761810671433,-500.0,0.00029863,4]
[392686573,1761810671442,-500.0,0.00029863,4]
[392686574,1761810671452,-500.0,0.00029863,4]
[392686575,1761810671461,-523.13,0.00029863,4]
[392686576,1761810671471,-500.0,0.00029863,4]
[392686577,1761810671480,-500.0,0.00029863,4]
[392686578,1761810671489,-500.0,0.00029863,4]
[392686579,1761810671499,-500.0,0.00029863,4]
[392686580,1761810671508,-589.59,0.00029863,4]
[392686581,1761810671517,-500.0,0.00029863,4]
[392686582,1761810671527,-500.0,0.00029863,4]
[392686583,1761810671537,-500.0,0.00029863,4]
[392686584,1761810671546,-500.0,0.00029863,4]
[392686585,1761810671556,-500.0,0.00029863,4]
[392686586,1761810671566,-500.0,0.00029863,4]
[392686587,1761810671576,-500.0,0.00029863,4]
[392686588,1761810671587,-500.0,0.00029863,4]
[392686589,1761810671597,-500.0,0.00029863,4]
[392686590,1761810671607,-500.0,0.00029863,4]
[392686591,1761810671617,-500.0,0.00029863,4]
[392686592,1761810671627,-524.96,0.00029863,4]
[392686593,1761810671637,-1507.7,0.00029863,3]
[392686594,1761810671647,-388.63,0.00029863,4]
[392686595,1761810671657,-154.68,0.00029863,4]
[392686596,1761810671666,-581.5,0.00029863,4]
[392686597,1761810671675,-500.0,0.00029863,4]
[392686598,1761810671685,-500.0,0.00029863,4]
[392686599,1761810671695,-500.0,0.00029863,4]
[392686600,1761810671705,-3653.56,0.00029863,4]
[392686601,1761810671714,-500.0,0.00029863,4]
[392686602,1761810671724,-500.0,0.00029863,4]
[392686603,1761810671734,-500.0,0.00029863,4]
[392686604,1761810671744,-500.0,0.00029863,4]
[392686605,1761810671753,-500.0,0.00029863,4]
[392686606,1761810671762,-500.0,0.00029863,4]
[392686607,1761810671770,-500.0,0.00029863,4]
[392686608,1761810671781,-500.0,0.00029863,4]
[392686609,1761810671791,-623.28,0.00029863,4]
[392686610,1761810671801,-500.0,0.00029863,4]
[392686611,1761810671810,-533.07,0.00029863,4]
[392686612,1761810671819,-500.0,0.00029863,4]
[392686613,1761810671829,-500.0,0.00029863,4]
[392686614,1761810671838,-502.61974099,0.0002988,7]
[392686615,1761810671848,-500.0,0.00029883,7]
[392686616,1761810671858,-800.0,0.00029892,7]
[392686617,1761810671867,-632.37115525,0.00029919,4]
[392686618,1761810671877,-163.341324,0.00029934,5]
[392686619,1761810671886,-1284.59,0.0003,7]
[392686620,1761810671896,-502.14951334,0.00030033,7]
[392686621,1761810671906,-500.0,0.00030051,4]
[392686622,1761810671915,-500.0,0.00030051,4]
[392686623,1761810671924,-500.0,0.00030051,4]
[392686624,1761810671934,-500.0,0.00030051,4]
[392686625,1761810671944,-500.0,0.00030051,4]
[392686626,1761810671954,-500.0,0.00030051,4]
[392686627,1761810671963,-273.04,0.00030051,4]
[392686628,1761810671973,-500.0,0.00030051,4]
[392686629,1761810671982,-500.0,0.00030051,2]
[392686630,1761810671996,-291.06,0.00030051,4]
[392686631,1761810672006,-750.8,0.00030051,4]
[392686632,1761810672097,-500.0,0.00030051,4]
[392686633,1761810672107,-500.0,0.00030051,4]
[392686634,1761810672116,-500.0,0.00030051,4]
[392686635,1761810672125,-1079.18,0.00030051,4]
[392686636,1761810672134,-500.0,0.00030051,4]
[392686637,1761810672144,-500.0,0.00030051,4]
[392686638,1761810672154,-500.0,0.00030051,4]
[392686639,1761810672163,-500.0,0.00030051,4]
[392686640,1761810672173,-500.0,0.00030051,4]
[392686641,1761810672182,-500.0,0.00030051,4]
[392686642,1761810672191,-608.46,0.00030051,4]
[392686643,1761810672200,-1500.0,0.00030116,5]
[392686644,1761810672210,-500.0,0.00030136,4]
[392686645,1761810672220,-500.0,0.00030136,4]
[392686646,1761810672230,-500.0,0.00030136,4]
[392686647,1761810672239,-512.2,0.00030136,4]
[392686648,1761810672248,-500.0,0.00030136,4]
[392686649,1761810672258,-500.0,0.00030136,4]
[392686650,1761810672267,-500.0,0.00030136,4]
[392686651,1761810672276,-500.0,0.00030136,4]
[392686652,1761810672287,-319.78,0.00030136,4]
[392686653,1761810672296,-500.0,0.00030136,4]
[392686654,1761810672306,-500.0,0.00030136,4]
[392686655,1761810672317,-500.0,0.00030136,4]
[392686656,1761810672326,-500.0,0.00030136,4]
[392686657,1761810672336,-500.0,0.00030136,4]
[392686658,1761810672346,-539.18,0.00030136,4]
[392686659,1761810672356,-500.0,0.00030136,4]
[392686660,1761810672365,-520.22793298,0.00030136,4]
[392686661,1761810672376,-1257.51,0.00030136,4]
[392686662,1761810672387,-500.0,0.00030136,4]
[392686663,1761810672397,-500.0,0.00030136,4]
[392686664,1761810672407,-500.0,0.00030136,4]
[392686665,1761810672417,-500.0,0.00030136,4]
[392686666,1761810672428,-500.0,0.00030136,4]
[392686667,1761810672437,-500.0,0.00030136,4]
[392686668,1761810672447,-500.0,0.00030136,4]
[392686669,1761810672456,-507.62,0.00030136,4]
[392686670,1761810672466,-500.0,0.00030136,4]
[392686671,1761810672476,-500.0,0.00030136,4]
[392686672,1761810672485,-500.0,0.00030136,4]
[392686673,1761810672495,-407.45,0.00030136,4]
[392686674,1761810672504,-590.42,0.00030136,4]
[392686675,1761810672513,-588.0,0.00030136,4]
[392686676,1761810672522,-500.0,0.00030136,4]
[392686677,1761810672531,-500.0,0.00030136,4]
[392686678,1761810672541,-500.0,0.00030136,4]
[392686679,1761810672551,-1166.11,0.00030136,4]
[392686680,1761810672561,-592.45,0.00030136,4]
[392686681,1761810672570,-500.0,0.00030136,4]
[392686682,1761810672580,-500.0,0.00030136,4]
[392686683,1761810672589,-1276.78,0.00030136,4]
[392686684,1761810672598,-500.0,0.00030136,4]
[392686685,1761810672608,-500.0,0.00030136,4]
[392686686,1761810672618,-500.0,0.00030136,4]
[392686687,1761810672628,-500.0,0.00030136,4]
[392686688,1761810672637,-500.0,0.00030136,4]
[392686689,1761810672647,-500.0,0.00030136,4]
[392686690,1761810672657,-500.0,0.00030136,4]
[392686691,1761810672666,-500.0,0.00030136,4]
[392686692,1761810672678,-619.71,0.00030136,4]
[392686693,1761810672687,-500.0,0.00030136,4]
[392686694,1761810672696,-500.0,0.00030136,4]
[392686695,1761810672706,-536.13,0.00030136,4]
[392686696,1761810672715,-500.0,0.00030136,4]
[392686697,1761810672727,-410.87,0.00030136,4]
[392686698,1761810672744,-660.73,0.00030136,4]
[392686699,1761810672760,-500.0,0.00030136,4]
[392686700,1761810672778,-552.55,0.00030136,4]
[392686701,1761810672795,-500.0,0.00030136,4]
[392686702,1761810672812,-500.0,0.00030136,4]
[392686703,1761810672828,-500.0,0.00030136,4]
[392686704,1761810672845,-500.0,0.00030136,4]
[392686705,1761810672859,-500.0,0.00030136,4]
[392686706,1761810672874,-500.0,0.00030136,4]
[392686707,1761810672891,-500.0,0.00030136,4]
[392686708,1761810672909,-500.0,0.00030136,4]
[392686709,1761810672924,-500.0,0.00030136,4]
[392686710,1761810672936,-500.0,0.00030136,4]
[392686711,1761810672954,-500.0,0.00030136,4]
[392686712,1761810672967,-500.0,0.00030136,4]
[392686713,1761810672983,-523.13,0.00030136,4]
[392686714,1761810672998,-500.0,0.00030136,4]
[392686715,1761810673013,-500.0,0.00030136,4]
[392686716,1761810673028,-500.0,0.00030136,4]
[392686717,1761810673041,-500.0,0.00030136,4]
[392686718,1761810673055,-589.59,0.00030136,4]
[392686719,1761810673069,-500.0,0.00030136,4]
[392686720,1761810673084,-500.0,0.00030136,4]
[392686721,1761810673098,-500.0,0.00030136,4]
[392686722,1761810673112,-500.0,0.00030136,4]
[392686723,1761810673126,-500.0,0.00030136,4]
[392686724,1761810673139,-500.0,0.00030136,4]
[392686725,1761810673152,-500.0,0.00030136,4]
[392686726,1761810673166,-500.0,0.00030136,4]
[392686727,1761810673180,-500.0,0.00030136,4]
[392686728,1761810673194,-500.0,0.00030136,4]
[392686729,1761810673207,-500.0,0.00030136,4]
[392686730,1761810673220,-524.96,0.00030136,4]
[392686731,1761810673234,-1507.7,0.00030136,3]
[392686732,1761810673248,-581.5,0.00030136,4]
[392686733,1761810673262,-500.0,0.00030136,4]
[392686734,1761810673276,-500.0,0.00030136,4]
[392686735,1761810673289,-500.0,0.00030136,4]
[392686736,1761810673301,-3653.56,0.00030136,4]
[392686737,1761810673311,-500.0,0.00030136,4]
[392686738,1761810673320,-500.0,0.00030136,4]
[392686739,1761810673330,-500.0,0.00030136,4]
[392686740,1761810673339,-458.68,0.00030136,4]
[392686741,1761810673348,-500.0,0.00030136,4]
[392686742,1761810673357,-500.0,0.00030136,4]
[392686743,1761810673366,-500.0,0.00030136,4]
[392686744,1761810673376,-565.38,0.00030136,4]
[392686745,1761810673385,-500.0,0.00030136,4]
[392686746,1761810673394,-533.07,0.00030136,4]
[392686747,1761810673403,-500.0,0.00030136,4]
[392686748,1761810673412,-500.0,0.00030136,4]
[392686749,1761810673421,-500.0,0.00030325,4]
[392686750,1761810673430,-500.0,0.00030325,4]
[392686751,1761810673439,-500.0,0.00030325,4]
[392686752,1761810673449,-638.05,0.00030325,4]
[392686753,1761810673458,-162.2,0.00030325,4]
[392686754,1761810673468,-500.0,0.00030325,4]
[392686755,1761810673477,-500.0,0.00030325,4]
[392686756,1761810673486,-500.0,0.00030325,2]
[392686757,1761810673495,-750.8,0.00030325,4]
[392686758,1761810673504,-500.0,0.00030325,4]
[392686759,1761810673518,-365.80795858,0.00030325,4]
[392686760,1761810673527,-500.0,0.00030325,4]
[392686761,1761810673537,-1079.18,0.00030325,4]
[392686762,1761810673546,-500.0,0.00030325,4]
[392686763,1761810673556,-500.0,0.00030325,4]
[392686764,1761810673786,-500.0,0.00030325,4]
[392686765,1761810673806,-500.0,0.00030325,4]
[392686766,1761810673820,-500.0,0.00030325,4]
[392686767,1761810673829,-500.0,0.00030325,4]
[392686768,1761810673839,-587.0,0.00030338,2]
[392686769,1761810673848,-500.0,0.0003041,4]
[392686770,1761810673857,-500.0,0.0003041,4]
[392686771,1761810673867,-418.24,0.0003041,4]
[392686772,1761810673876,-500.0,0.0003041,4]
[392686773,1761810673885,-500.0,0.0003041,4]
[392686774,1761810673896,-293.66,0.0003041,4]
[392686775,1761810673905,-500.0,0.0003041,4]
[392686776,1761810673916,-260.55,0.0003041,4]
[392686777,1761810673925,-465.75,0.0003041,4]
[392686778,1761810673935,-500.0,0.0003041,4]
[392686779,1761810673945,-500.0,0.0003041,4]
[392686780,1761810673954,-500.0,0.0003041,4]
[392686781,1761810673963,-539.18,0.0003041,4]
[392686782,1761810673973,-500.0,0.0003041,4]
[392686783,1761810673982,-1257.51,0.0003041,4]
[392686784,1761810673995,-500.0,0.0003041,4]
[392686785,1761810674004,-500.0,0.0003041,4]
[392686786,1761810674013,-500.0,0.0003041,4]
[392686787,1761810674022,-500.0,0.0003041,4]
[392686788,1761810674031,-500.0,0.0003041,4]
[392686789,1761810674042,-500.0,0.0003041,4]
[392686790,1761810674051,-500.0,0.0003041,4]
[392686791,1761810674060,-507.62,0.0003041,4]
[392686792,1761810674071,-500.0,0.0003041,4]
[392686793,1761810674080,-500.0,0.0003041,4]
[392686794,1761810674090,-362.05,0.0003041,4]
[392686795,1761810674100,-590.42,0.0003041,4]
[392686796,1761810674110,-500.0,0.0003041,4]
[392686797,1761810674121,-500.0,0.0003041,4]
[392686798,1761810674130,-500.0,0.0003041,4]
[392686799,1761810674140,-1166.11,0.0003041,4]
[392686800,1761810674151,-592.45,0.0003041,4]
[392686801,1761810674163,-500.0,0.0003041,4]
[392686802,1761810674172,-500.0,0.0003041,4]
[392686803,1761810674181,-1276.78,0.0003041,4]
[392686804,1761810674192,-500.0,0.0003041,4]
[392686805,1761810674202,-432.2,0.0003041,4]
[392686806,1761810674211,-475.24,0.0003041,4]
[392686807,1761810674222,-500.0,0.0003041,4]
[392686808,1761810674232,-500.0,0.0003041,4]
[392686809,1761810674242,-500.0,0.0003041,4]
[392686810,1761810674253,-500.0,0.0003041,4]
[392686811,1761810674263,-500.0,0.0003041,4]
[392686812,1761810674272,-500.0,0.0003041,4]
[392686813,1761810674282,-500.0,0.0003041,4]
[392686814,1761810674292,-536.13,0.0003041,4]
[392686815,1761810674301,-500.0,0.0003041,4]
[392686816,1761810674310,-660.73,0.0003041,4]
[392686817,1761810674319,-500.0,0.0003041,4]
[392686818,1761810674328,-552.55,0.0003041,4]
[392686819,1761810674338,-500.0,0.0003041,4]
[392686820,1761810674347,-500.0,0.0003041,4]
[392686821,1761810674356,-154.79,0.0003041,4]
[392686822,1761810674367,-500.0,0.0003041,4]
[392686823,1761810674377,-500.0,0.0003041,4]
[392686824,1761810674388,-500.0,0.0003041,4]
[392686825,1761810674398,-500.0,0.0003041,4]
[392686826,1761810674408,-500.0,0.0003041,4]
[392686827,1761810674418,-500.0,0.0003041,4]
[392686828,1761810674429,-500.0,0.0003041,4]
[392686829,1761810674438,-500.0,0.0003041,4]
[392686830,1761810674448,-500.0,0.0003041,4]
[392686831,1761810674458,-523.13,0.0003041,4]
[392686832,1761810674469,-500.0,0.0003041,4]
[392686833,1761810674480,-500.0,0.0003041,4]
[392686834,1761810674490,-500.0,0.0003041,4]
[392686835,1761810674499,-500.0,0.0003041,4]
[392686836,1761810674508,-589.59,0.0003041,4]
[392686837,1761810674518,-500.0,0.0003041,4]
[392686838,1761810674529,-500.0,0.0003041,4]
[392686839,1761810674540,-500.0,0.0003041,4]
[392686840,1761810674549,-500.0,0.0003041,4]
[392686841,1761810674559,-500.0,0.0003041,4]
[392686842,1761810674570,-500.0,0.0003041,4]
[392686843,1761810674581,-500.0,0.0003041,4]
[392686844,1761810674590,-247.79,0.0003041,4]
[392686845,1761810674600,-500.0,0.0003041,4]
[392686846,1761810674611,-500.0,0.0003041,4]
[392686847,1761810674623,-500.0,0.0003041,4]
[392686848,1761810674632,-524.96,0.0003041,4]
[392686849,1761810674643,-1507.7,0.0003041,3]
[392686850,1761810674652,-581.5,0.0003041,4]
[392686851,1761810674662,-500.0,0.0003041,4]
[392686852,1761810674673,-500.0,0.0003041,4]
[392686853,1761810674684,-500.0,0.0003041,4]
[392686854,1761810674694,-3653.56,0.0003041,4]
[392686855,1761810674704,-500.0,0.0003041,4]
[392686856,1761810674714,-500.0,0.0003041,4]
[392686857,1761810674723,-500.0,0.0003041,4]
[392686858,1761810674733,-500.0,0.0003041,4]
[392686859,1761810674742,-500.0,0.0003041,4]
[392686860,1761810674751,-500.0,0.0003041,4]
[392686861,1761810674761,-533.07,0.0003041,4]
[392686862,1761810674770,-500.0,0.0003041,4]
[392686863,1761810674779,-302.74340573,0.0003047,2]
[392686864,1761810674789,-302.74340573,0.0003047,2]
[392686865,1761810674798,-302.74340573,0.0003047,2]
[392686866,1761810674807,-500.0,0.00030599,4]
[392686867,1761810674816,-500.0,0.00030599,4]
[392686868,1761810674826,-500.0,0.00030599,4]
[392686869,1761810674835,-165.3535242,0.00030599,4]
[392686870,1761810674845,-500.0,0.00030599,4]
[392686871,1761810674855,-500.0,0.00030599,2]
[392686872,1761810674865,-750.8,0.00030599,4]
[392686873,1761810674875,-500.0,0.00030599,4]
[392686874,1761810674885,-500.0,0.00030599,4]
[392686875,1761810674895,-1079.18,0.00030599,4]
[392686876,1761810674904,-500.0,0.00030599,4]
[392686877,1761810674914,-500.0,0.00030599,4]
[392686878,1761810674923,-500.0,0.00030599,4]
[392686879,1761810674933,-500.0,0.00030599,4]
[392686880,1761810674944,-500.0,0.00030599,4]
[392686881,1761810674952,-500.0,0.00030599,4]
[392686882,1761810674962,-500.0,0.00030684,4]
[392686883,1761810674972,-500.0,0.00030684,4]
[392686884,1761810674981,-500.0,0.00030684,4]
[392686885,1761810674994,-500.0,0.00030684,4]
[392686886,1761810675004,-500.0,0.00030684,4]
[392686887,1761810675014,-500.0,0.00030684,4]
[392686888,1761810675023,-500.0,0.00030684,4]
[392686889,1761810675034,-500.0,0.00030684,4]
[392686890,1761810675044,-539.18,0.00030684,4]
[392686891,1761810675054,-500.0,0.00030684,4]
[392686892,1761810675064,-1257.51,0.00030684,4]
[392686893,1761810675075,-348.35,0.00030684,4]
[392686894,1761810675086,-500.0,0.00030684,4]
[392686895,1761810675096,-500.0,0.00030684,4]
[392686896,1761810675107,-590.2,0.00030684,4]
[392686897,1761810675117,-500.0,0.00030684,4]
[392686898,1761810675127,-228.3,0.00030684,4]
[392686899,1761810675138,-500.0,0.00030684,4]
[392686900,1761810675148,-507.62,0.00030684,4]
[392686901,1761810675159,-500.0,0.00030684,4]
[392686902,1761810675168,-500.0,0.00030684,4]
[392686903,1761810675178,-590.42,0.00030684,4]
[392686904,1761810675187,-500.0,0.00030684,4]
[392686905,1761810675196,-500.0,0.00030684,4]
[392686906,1761810675206,-500.0,0.00030684,4]
[392686907,1761810675215,-1166.11,0.00030684,4]
[392686908,1761810675224,-592.45,0.00030684,4]
[392686909,1761810675233,-306.58345477,0.00030684,4]
[392686910,1761810675242,-500.0,0.00030684,4]
[392686911,1761810675251,-1276.78,0.00030684,4]
[392686912,1761810675260,-500.0,0.00030684,4]
[392686913,1761810675270,-500.0,0.00030684,4]
[392686914,1761810675279,-500.0,0.00030684,4]
[392686915,1761810675289,-408.71,0.00030684,4]
[392686916,1761810675298,-500.0,0.00030684,4]
[392686917,1761810675307,-500.0,0.00030684,4]
[392686918,1761810675316,-500.0,0.00030684,4]
[392686919,1761810675326,-500.0,0.00030684,4]
[392686920,1761810675335,-536.13,0.00030684,4]
[392686921,1761810675344,-500.0,0.00030684,4]
[392686922,1761810675354,-660.73,0.00030684,4]
[392686923,1761810675364,-500.0,0.00030684,4]
[392686924,1761810675373,-552.55,0.00030684,4]
[392686925,1761810675382,-500.0,0.00030684,4]
[392686926,1761810675391,-500.0,0.00030684,4]
[392686927,1761810675402,-500.0,0.00030684,4]
[392686928,1761810675411,-500.0,0.00030684,4]
[392686929,1761810675420,-500.0,0.00030684,4]
[392686930,1761810675430,-500.0,0.00030684,4]
[392686931,1761810675440,-398.1,0.00030684,4]
[392686932,1761810675449,-500.0,0.00030684,4]
[392686933,1761810675458,-259.56,0.00030684,4]
[392686934,1761810675470,-500.0,0.00030684,4]
[392686935,1761810675480,-500.0,0.00030684,4]
[392686936,1761810675489,-523.13,0.00030684,4]
[392686937,1761810675498,-500.0,0.00030684,4]
[392686938,1761810675510,-500.0,0.00030684,4]
[392686939,1761810675522,-500.0,0.00030684,4]
[392686940,1761810675532,-500.0,0.00030684,4]
[392686941,1761810675542,-589.59,0.00030684,4]
[392686942,1761810675551,-500.0,0.00030684,4]
[392686943,1761810675560,-500.0,0.00030684,4]
[392686944,1761810675569,-500.0,0.00030684,4]
[392686945,1761810675578,-500.0,0.00030684,4]
[392686946,1761810675587,-500.0,0.00030684,4]
[392686947,1761810675596,-500.0,0.00030684,4]
[392686948,1761810675605,-500.0,0.00030684,4]
[392686949,1761810675615,-500.0,0.00030684,4]
[392686950,1761810675624,-282.47793085,0.00030684,4]
[392686951,1761810675633,-500.0,0.00030684,4]